[Event "7th Ali Ipek Memorial 2019"]
[Site "Ankara"]
[Date "2019.03.09"]
[Round "4.6"]
[White "Coban, Eren Cinar"]
[Black "Kizilkus, Tanju"]
[Result "1-0"]
[ECO "B21"]
[WhiteElo "1693"]
[BlackElo "1571"]
[Annotator "NA RC"]
[PlyCount "45"]
[EventDate "2019.03.06"]
[EventType "swiss"]
[EventCountry "TUR"]
[SourceTitle "playchess.com"]
[Source "ChessBase"]
[SourceQuality "1"]
[TimeControl "5400+30"]

1. e4 {[%emt 0:00:30]} c5 {[%emt 0:00:30]} 2. d4 {[%emt 0:00:30]} cxd4 {[%emt 0:00:30]} 3. c3 {[%emt 0:00:30]} dxc3 {[%emt 0:00:30]} 4. Nxc3 {[%emt 0:00:30]} d6 {[%emt 0:00:30]} 5. Bc4 {[%emt 0:00:00]} e6 {[%emt 0:00:00]} 6. Nf3 {[%emt 0:00:00]} Nc6 {[%emt 0:00:00]} 7. O-O {[%emt 0:00:00]} Nf6 {[%emt 0:00:00]} 8. Qe2 {[%emt 0:00:00]} Be7 {[%emt 0:02:00]} 9. Rd1 {[%emt 0:00:30]} e5 {[%emt 0:08:30]} 10. Bg5 {[%emt 0:02:30]} Bg4 {[%emt 0:05:30]} 11. Qe3 {[%emt 0:11:30]} Nd4 {[%emt 0:03:30]} 12. Nxd4 {[%emt 0:03:30]} Bxd1 {[%emt 0:00:30]} 13. Nf5 {[%emt 0:04:30]} Bg4 {[%emt 0:00:30]} 14. Bb5+ {[%emt 0:16:30]} Kf8 {[%emt 0:00:00]} 15. Nxe7 {[%emt 0:01:30]} Qxe7 {[%emt 0:02:00]} 16. Nd5 {[%emt 0:00:30]} Nxd5 {[%emt 0:05:30]} 17. Bxe7+ {[%emt 0:00:30]} Nxe7 {[%emt 0:00:00]} 18. Rc1 {[%emt 0:00:30]} a6 {[%emt 0:07:00]} 19. Ba4 {[%emt 0:00:30]} b5 {[%emt 0:01:30]} 20. Bb3 {[%emt 0:00:30]} a5 {[%emt 0:17:30]} 21. Rc7 {[%emt 0:02:30]} a4 {[%emt 0:06:30]} 22. Qg5 {[%emt 0:00:30]} f6 {[%emt 0:01:30]} 23. Qxg4 {[%emt 0:00:30]} 1-0

[Event "7th Ali Ipek Memorial 2019"]
[Site "Ankara"]
[Date "2019.03.09"]
[Round "4.7"]
[White "Yuksel, Mahmut"]
[Black "Kizilkus, Akin"]
[Result "0-1"]
[ECO "C11"]
[WhiteElo "1720"]
[BlackElo "2004"]
[Annotator "NA"]
[PlyCount "96"]
[EventDate "2019.03.06"]
[EventType "swiss"]
[EventCountry "TUR"]
[SourceTitle "playchess.com"]
[Source "ChessBase"]
[SourceQuality "1"]
[TimeControl "5400+30"]

{[%evp 8,82,2,8,12,0,10,0,13,0,6,-97,-117,-94,-121,-120,-112,-135,-67,-95,-81,-206,-133,-148,-133,-128,-154,-129,-72,-65,-99,-90,-88,-119,128,-128,-101,-125,-115,32767,32767,32767,32767,32767,32767,32767,32767,32767,32767,32767,32767,32767,32767,32767,-54,32767,32767,32767,32767,32767,32767,32767,-62,32767,32767,-260,32767,32767,32767,32767,32767,32767,32767,32767,32767,32767,-386]} 1. e4 {[%emt 0:00:30]} e6 {[%emt 0:00:30]} 2. d4 {[%emt 0:01:30]} d5 {[%emt 0:00:00]} 3. Nc3 {[%emt 0:01:30]} Nf6 {[%emt 0:00:00]} 4. e5 {[%emt 0:01:30]} Nfd7 {[%emt 0:00:30]} 5. f4 {[%emt 0:01:30]} c5 {[%emt 0:00:00]} 6. Nf3 {[%emt 0:00:30]} Nc6 {[%emt 0:00:00]} 7. Be3 {[%emt 0:00:30]} Be7 {[%emt 0:00:30]} 8. Qd2 {[%emt 0:01:30]} O-O {[%emt 0:00:30]} 9. O-O-O {[%emt 0:00:30] C11: French: Classical System: 4 e5 and 4 Bg5 dxe4} (9. dxc5 $11 Bxc5 (9... Qa5 10. a3 Bxc5 11. Bxc5 Nxc5 12. Bd3 Bd7 13. O-O Nxd3 14. cxd3 Rac8 15. Qf2 Qa6 16. Rad1 b5 17. f5 exf5 18. Nxd5 {1-0 (37) Anand,V (2773)-Christiansen,J (2555) St Petersburg 2018}) 10. O-O-O) 9... c4 {[%emt 0:00:00]} 10. f5 {[%emt 0:04:30] [#]} b5 $1 {[%emt 0:03:00]} 11. f6 {[%emt 0:16:30]} gxf6 {[%emt 0:01:30]} 12. exf6 {[%emt 0:00:30]} Bxf6 {[%emt 0:01:30]} ({Black should try} 12... Nxf6 $17 13. Bh6 Ng4 14. Bxf8 Bxf8) 13. Bh6 {[%emt 0:05:30]} b4 {[%emt 0:04:30] LiveBook: 3 Games [#]} 14. Nb1 $146 {[%emt 0:08:30]} ({Predecessor:} 14. Ne2 $17 Re8 15. Ng3 e5 16. Nh5 Bh8 {0-1 (27) Bogdanovich,S (2583)-Gasimov,P (2306) Baku 2017}) 14... Bg7 {[%emt 0:02:30]} (14... Qa5 $19 15. Ne5 Ncxe5 16. dxe5 Nxe5) 15. h4 {[%emt 0:01:30]} Bxh6 {[%emt 0:12:30]} 16. Qxh6 {[%emt 0:00:30]} Qf6 {[%emt 0:00:30]} 17. Qe3 {[%emt 0:07:30]} Ne7 {[%emt 0:13:30]} (17... Bb7 $142 18. g4 e5 19. Nxe5 Ncxe5 20. dxe5 Nxe5) 18. g4 {[%emt 0:01:30]} Ng6 {[%emt 0:01:30]} 19. h5 {[%emt 0:05:30] [#]} Qf4 $1 {[%emt 0:00:30]} 20. Kd2 {[%emt 0:00:30] [#]} Qxe3+ $1 {[%emt 0:00:30]} ({Stronger than} 20... Qxg4 21. Be2 $16 (21. hxg6 fxg6 22. Ng5 Rf4 $16)) ({Not} 20... Nf6 21. Qxf4 Nxf4 22. Ke3 $11) 21. Kxe3 {[%emt 0:00:30]} Ne7 {[%emt 0:00:30]} 22. Bh3 {[%emt 0:00:30]} Rb8 {[%emt 0:11:30]} 23. g5 {[%emt 0:03:30]} b3 {[%emt 0:05:30]} 24. axb3 {[%emt 0:04:30]} cxb3 {[%emt 0:00:30]} 25. c3 {[%emt 0:00:00]} Nb6 {[%emt 0:01:30]} 26. Nbd2 {[%emt 0:01:00]} Nc6 {[%emt 0:01:30]} 27. Rdg1 {[%emt 0:01:30]} Kg7 {[%emt 0:02:30]} 28. Rh2 {[%emt 0:09:30]} a5 {[%emt 0:05:30]} 29. g6 {[%emt 0:02:28]} fxg6 {[%emt 0:00:30]} 30. hxg6 {[%emt 0:00:14]} hxg6 {[%emt 0:03:30]} 31. Ng5 {[%emt 0:03:22]} Rh8 {[%emt 0:02:30]} 32. Rf2 {[%emt 0:03:08]} Rb7 {[%emt 0:02:30]} 33. Bf1 {[%emt 0:00:24]} e5 {[%emt 0:01:30]} 34. Nxb3 {[%emt 0:02:11]} exd4+ {[%emt 0:03:30]} 35. Nxd4 {[%emt 0:00:38]} Nxd4 {[%emt 0:00:00]} 36. cxd4 $2 {[%emt 0:01:40]} (36. Kxd4 $15 Rh4+ 37. Kc5) 36... Re8+ {[%emt 0:00:00]} 37. Kf3 {[%emt 0:01:54]} Rf8+ {[%emt 0:01:30]} 38. Kg3 {[%emt 0:00:54]} Rxf2 {[%emt 0:00:30]} 39. Kxf2 {[%emt 0:00:03]} Na4 {[%emt 0:00:45]} 40. Bg2 {[%emt 0:01:18]} Rxb2+ {[%emt 0:00:30]} 41. Kg3 {[%emt 0:00:00]} Nc3 $19 {[%emt 0:00:42]} 42. Bf3 {[%emt 0:02:24]} Bf5 {[%emt 0:04:24]} 43. Rc1 {[%emt 0:01:31]} Rc2 {[%emt 0:00:30]} 44. Ra1 {[%emt 0:00:30]} a4 {[%emt 0:00:30]} 45. Kf4 {[%emt 0:00:48]} Kf6 {[%emt 0:02:27]} 46. Bd1 {[%emt 0:02:09]} Rd2 {[%emt 0:00:24]} 47. Rc1 {[%emt 0:03:29]} Rxd4+ {[%emt 0:00:54]} 48. Ke3 {[%emt 0:00:30]} Rxd1 {[%emt 0:00:00]} 0-1

[Event "7th Ali Ipek Memorial 2019"]
[Site "Ankara"]
[Date "2019.03.09"]
[Round "4.8"]
[White "Karadag, Eflatun Cem"]
[Black "Pamuk, Yagiz"]
[Result "1-0"]
[ECO "B78"]
[WhiteElo "1879"]
[BlackElo "1366"]
[Annotator "NA RC"]
[PlyCount "55"]
[EventDate "2019.03.06"]
[EventType "swiss"]
[EventCountry "TUR"]
[SourceTitle "playchess.com"]
[Source "ChessBase"]
[SourceQuality "1"]
[TimeControl "5400+30"]

{[%evp 8,55,40,4,15,8,0,0,58,56,86,32,56,44,48,72,84,90,136,95,118,-80,222,215,240,216,239,224,232,230,471,508,691,704,717,659,663,766,606,525,620,808,961,614,562,664,605,529,544,599]} 1. e4 {[%emt 0:00:00]} c5 {[%emt 0:00:30]} 2. Nc3 {[%emt 0:00:00]} g6 {[%emt 0:00:30]} 3. d4 {[%emt 0:00:30]} Bg7 {[%emt 0:03:30]} 4. Nf3 {[%emt 0:00:30]} cxd4 {[%emt 0:01:30]} 5. Nxd4 {[%emt 0:00:30]} Nc6 {[%emt 0:01:30]} 6. Be3 {[%emt 0:00:30]} Nf6 $1 {[%emt 0:00:30]} 7. f3 {[%emt 0:00:30]} d6 {[%emt 0:05:30]} (7... O-O $11) 8. Qd2 {[%emt 0:00:30] LiveBook: 3757 Games} Bd7 {[%emt 0:02:30]} 9. Bc4 {[%emt 0:00:30]} Qc8 {[%emt 0:07:30]} 10. Bb3 {[%emt 0:00:30]} O-O {[%emt 0:04:30]} 11. O-O-O {[%emt 0:01:30]} Nxd4 {[%emt 0:00:30]} 12. Bxd4 {[%emt 0:00:30]} ({Don't play} 12. Qxd4 Ng4 $15) 12... b5 $146 {[%emt 0:00:30] B78: Sicilian Dragon: Yugoslav Attack, 9 Bc4 Bd7 10 0-0-0 Rc8} ({Predecessor:} 12... Be6 13. g4 Bxb3 14. axb3 h5 15. Bxf6 Bxf6 16. gxh5 Bxc3 17. bxc3 Qc5 18. hxg6 fxg6 19. Rhf1 Rac8 20. c4 {0-1 (28) Rostad,R (1813)-Tolda Andreu,E (1827) Drammen 2018}) 13. g4 {[%emt 0:00:30]} a5 {[%emt 0:02:30] [#]} 14. h4 $2 {[%emt 0:06:30] [#]} (14. g5 $1 $16 {[%cal Rg5f6] and life is bright.} b4 15. Na4 (15. gxf6 bxc3 16. Bxc3 Bxf6 $16)) 14... b4 $2 {[%emt 0:13:30]} (14... a4 $1 $17 {[%cal Ra4b3] keeps the pressure on.} 15. Nd5 axb3 16. Nxe7+ Kh8 17. Bxf6 (17. Nxc8 $2 {loses.} bxa2 18. Qb4 a1=Q+ $19) 17... Bxf6 18. Nxc8 bxa2 19. Qxd6 a1=Q+ 20. Kd2 Qa5+ 21. Ke3 Qd8 22. Qxd7 Qxc8 23. Qxc8 Rfxc8) 15. Nd5 {[%emt 0:08:30]} Nxd5 {[%emt 0:02:30]} 16. Bxg7 {[%emt 0:01:30]} ({Weaker is} 16. Bxd5 Bxd4 17. Qxd4 (17. Bxa8 Be5 $17) 17... Bc6 $14) 16... Kxg7 {[%emt 0:01:30]} 17. Bxd5 {[%emt 0:01:30]} Bc6 {[%emt 0:01:30] [#]} 18. h5 $1 {[%emt 0:00:00]} Rh8 $2 {[%emt 0:01:30]} (18... Bxd5 19. exd5 Rh8 20. Qd4+ f6) 19. hxg6 {[%emt 0:00:00]} h6 {[%emt 0:14:30]} 20. Bxf7 {[%emt 0:01:30]} Ba4 {[%emt 0:01:30]} 21. Rh2 {[%emt 0:00:30]} Qc5 {[%emt 0:01:30]} 22. Rh5 {[%emt 0:01:30]} e5 {[%emt 0:01:30]} 23. Rdh1 {[%emt 0:00:30]} Rac8 {[%emt 0:00:30]} 24. b3 {[%emt 0:00:30]} Bd7 {[%emt 0:00:30]} 25. Bc4 {[%emt 0:01:30]} Qd4 {[%emt 0:00:30]} 26. Qxd4 {[%emt 0:00:30]} exd4 {[%emt 0:00:30]} 27. Rxa5 {[%emt 0:00:30]} Kxg6 {[%emt 0:00:00]} 28. Rd5 $18 {[%emt 0:01:30]} 1-0

[Event "7th Ali Ipek Memorial 2019"]
[Site "Ankara"]
[Date "2019.03.09"]
[Round "4.9"]
[White "Kayan, Yasar Efe"]
[Black "Ercan, Mehmet Fahri"]
[Result "0-1"]
[ECO "B24"]
[WhiteElo "1516"]
[BlackElo "1934"]
[Annotator "NA"]
[PlyCount "230"]
[EventDate "2019.03.06"]
[EventType "swiss"]
[EventCountry "TUR"]
[SourceTitle "playchess.com"]
[Source "ChessBase"]
[SourceQuality "1"]
[TimeControl "5400+30"]

1. e4 {[%emt 0:00:30]} c5 {[%emt 0:20:30]} 2. Nc3 {[%emt 0:00:00]} Nc6 {[%emt 0:00:30]} 3. g3 {[%emt 0:00:00]} d6 {[%emt 0:01:30]} 4. Bg2 {[%emt 0:00:00]} Nf6 {[%emt 0:01:30]} 5. d3 {[%emt 0:00:00]} e6 {[%emt 0:00:00]} 6. f4 {[%emt 0:00:00]} d5 {[%emt 0:02:00] B24: Closed Sicilian: 3 g3 sidelines} 7. e5 {[%emt 0:01:00]} Nd7 {[%emt 0:01:30]} 8. Nf3 {[%emt 0:00:30]} a6 {[%emt 0:01:30]} (8... Be7 9. O-O O-O 10. a3 b6 11. Qe2 Ba6 {1-0 (48) Siebarth,R (2421)-Grimberg,B (2386) playchess.com INT 2011}) 9. O-O {[%emt 0:02:30]} b5 {[%emt 0:00:30]} 10. Ng5 $146 {[%emt 0:02:30]} ({Predecessor:} 10. Ne2 Be7 11. c3 a5 12. g4 g6 13. Ng3 Qc7 {0-1 (30) Schmidt,M (2107)-Wolf,U (2126) Eppelborn 2008}) 10... Be7 {[%emt 0:02:30]} (10... Nb6 $1 $11) 11. Nxd5 {[%emt 0:06:30]} Bxg5 {[%emt 0:03:30] [#]} 12. Nf6+ {[%emt 0:00:00]} ({Inferior is} 12. fxg5 exd5 13. c4 (13. Bxd5 $2 Ndxe5 {[%mdl 64] Discovered Attack} 14. Bxc6+ Nxc6 $19) 13... Nb6 $17) ({White should play} 12. Nc3 $1 $16 Bb7 13. fxg5) 12... Bxf6 {[%emt 0:15:30]} 13. Bxc6 {[%emt 0:00:00]} Ra7 {[%emt 0:00:30]} 14. exf6 {[%emt 0:00:30]} Qxf6 {[%emt 0:01:30]} 15. Be3 {[%emt 0:01:30]} Rc7 {[%emt 0:02:30]} 16. Qf3 {[%emt 0:02:30]} O-O {[%emt 0:02:30]} 17. c3 {[%emt 0:01:30]} Qg6 {[%emt 0:07:30]} (17... Qe7 $5 {[%cal Re7d6]}) 18. d4 {[%emt 0:12:30]} Nb8 {[%emt 0:05:30]} ({Better is} 18... cxd4 $11 19. cxd4 (19. Bxd4 e5 $11) 19... Qc2) 19. d5 {[%emt 0:04:30]} (19. Be4 $16 f5 20. Ba8) 19... Rd8 {[%emt 0:08:30]} (19... Nxc6 $11 20. dxc6 e5) 20. Bxc5 $19 {[%emt 0:04:30]} (20. f5 $16 {and life is bright.} Qf6 21. fxe6 Qxf3 22. Rxf3 Bxe6 23. Bf4 (23. dxe6 Nxc6 24. Bxc5 Ne5 $16) (23. Bxc5 Bxd5 24. Bxd5 Rxd5 $11) 23... Rxc6 24. dxc6 Nxc6 25. Rff1) 20... exd5 {[%emt 0:00:30]} 21. Bb6 {[%emt 0:21:30]} Qxc6 {[%emt 0:00:30]} 22. Bxc7 {[%emt 0:00:30]} Qxc7 {[%emt 0:00:00]} 23. h4 {[%emt 0:00:00]} Bb7 {[%emt 0:01:00]} 24. Rad1 {[%emt 0:00:00]} Nd7 {[%emt 0:00:48]} 25. Rfe1 {[%emt 0:09:30]} Nf6 {[%emt 0:00:38]} 26. Rd4 {[%emt 0:03:30]} Bc8 {[%emt 0:01:52]} 27. Qe3 {[%emt 0:03:30]} Be6 {[%emt 0:01:33]} 28. f5 {[%emt 0:08:50]} Bd7 {[%emt 0:03:23]} 29. g4 {[%emt 0:02:38]} Re8 {[%emt 0:03:18]} 30. Qf2 {[%emt 0:01:35]} Ne4 {[%emt 0:00:50]} 31. Qe3 {[%emt 0:01:16]} Bc6 {[%emt 0:01:57]} 32. Qf3 {[%emt 0:04:58]} h6 {[%emt 0:01:12]} 33. Re3 {[%emt 0:01:42]} Qe7 {[%emt 0:01:14]} 34. f6 {[%emt 0:01:46]} Qxf6 {[%emt 0:00:30]} 35. Qxf6 {[%emt 0:00:30]} Nxf6 {[%emt 0:00:30]} 36. Rxe8+ {[%emt 0:00:30]} Nxe8 {[%emt 0:00:30]} 37. Kf2 {[%emt 0:00:30]} Nc7 {[%emt 0:01:13]} 38. b3 {[%emt 0:00:53]} Ne6 {[%emt 0:00:33]} 39. Rd2 {[%emt 0:00:17]} Nc5 {[%emt 0:00:41]} 40. Ke3 {[%emt 0:01:39]} Kf8 {[%emt 0:00:42]} 41. Rc2 {[%emt 0:01:07]} Ke7 {[%emt 0:00:38]} 42. c4 {[%emt 0:00:30]} dxc4 {[%emt 0:00:02]} 43. bxc4 {[%emt 0:00:00]} b4 {[%emt 0:00:15]} 44. Rb2 {[%emt 0:00:40]} a5 {[%emt 0:00:17]} 45. Kd4 {[%emt 0:01:30]} Kd6 {[%emt 0:00:40]} 46. Rf2 {[%emt 0:00:35]} f6 {[%emt 0:00:40]} 47. Rf5 {[%emt 0:01:33]} Ne6+ {[%emt 0:00:06]} 48. Kd3 {[%emt 0:00:43]} a4 {[%emt 0:00:34]} 49. c5+ {[%emt 0:00:51]} Nxc5+ {[%emt 0:00:30]} 50. Kc4 {[%emt 0:00:00]} b3 {[%emt 0:00:32]} 51. axb3 {[%emt 0:01:09]} axb3 {[%emt 0:00:30]} 52. Kc3 {[%emt 0:00:04]} Bd5 {[%emt 0:01:52]} 53. Rf1 {[%emt 0:00:35]} Ne4+ {[%emt 0:00:24]} 54. Kb2 {[%emt 0:00:11]} Nd2 {[%emt 0:00:34]} 55. Ra1 {[%emt 0:00:53]} Nf3 {[%emt 0:02:16]} 56. Ra7 {[%emt 0:00:30]} g6 {[%emt 0:01:12]} 57. Rh7 {[%emt 0:00:24]} Ne5 {[%emt 0:01:46]} 58. Rxh6 {[%emt 0:00:36]} Bf7 {[%emt 0:01:00]} 59. h5 {[%emt 0:00:35]} Nxg4 {[%emt 0:00:30]} 60. Rh7 {[%emt 0:00:00]} Ne5 {[%emt 0:00:29]} 61. h6 {[%emt 0:00:07]} Ke7 {[%emt 0:01:01]} 62. Rh8 {[%emt 0:00:29]} g5 {[%emt 0:00:35]} 63. h7 {[%emt 0:01:13]} Bg6 {[%emt 0:00:30]} 64. Re8+ {[%emt 0:00:30]} Bxe8 {[%emt 0:00:00]} 65. h8=Q {[%emt 0:00:00]} Bf7 {[%emt 0:00:16]} 66. Qh1 {[%emt 0:00:13]} g4 {[%emt 0:00:30]} 67. Qb7+ {[%emt 0:00:00]} Kf8 {[%emt 0:00:04]} 68. Qc8+ {[%emt 0:00:53]} Kg7 {[%emt 0:00:01]} 69. Qf5 {[%emt 0:00:29]} Nc4+ {[%emt 0:00:25]} 70. Kc3 {[%emt 0:00:19]} Ne5 {[%emt 0:00:58]} 71. Kb2 {[%emt 0:00:30]} Bg6 {[%emt 0:00:00]} 72. Qc8 {[%emt 0:00:18]} Bf7 {[%emt 0:01:19]} 73. Ka1 {[%emt 0:02:16]} Kg6 {[%emt 0:00:29]} 74. Qc3 {[%emt 0:00:00]} Bc4 {[%emt 0:00:34]} 75. Kb2 {[%emt 0:00:32]} Be6 {[%emt 0:00:46]} 76. Kc1 {[%emt 0:00:22]} Kf5 {[%emt 0:01:40]} 77. Kd1 {[%emt 0:00:18]} Bd5 {[%emt 0:00:22]} 78. Qd4 {[%emt 0:00:56]} Be4 {[%emt 0:00:30]} 79. Qf2+ {[%emt 0:00:49]} Bf3+ {[%emt 0:00:11]} 80. Kd2 {[%emt 0:00:06]} Nc4+ {[%emt 0:01:06]} 81. Kc3 {[%emt 0:00:38]} b2 {[%emt 0:00:55]} 82. Kc2 {[%emt 0:00:31]} Ke5 {[%emt 0:00:12]} 83. Qc5+ {[%emt 0:00:09]} Bd5 {[%emt 0:00:35]} 84. Qe7+ {[%emt 0:00:20]} Be6 {[%emt 0:00:00]} 85. Qc7+ {[%emt 0:00:37]} Kf5 {[%emt 0:01:16]} 86. Qh7+ {[%emt 0:00:25]} Kf4 {[%emt 0:00:16]} 87. Qh6+ {[%emt 0:00:47]} Ke5 {[%emt 0:00:17]} 88. Qh2+ {[%emt 0:00:28]} Kd5 {[%emt 0:00:30]} 89. Qf4 {[%emt 0:00:00]} f5 {[%emt 0:00:42]} 90. Qf2 {[%emt 0:01:01]} Ke4 {[%emt 0:00:23]} 91. Qe2+ {[%emt 0:01:04]} Ne3+ {[%emt 0:00:30]} 92. Kxb2 {[%emt 0:00:30]} Bc4 {[%emt 0:00:00]} 93. Qe1 {[%emt 0:00:00]} Kf3 {[%emt 0:00:45]} 94. Kc3 {[%emt 0:00:15]} Be2 {[%emt 0:00:41]} 95. Qh1+ {[%emt 0:00:49]} Kf2 {[%emt 0:00:15]} 96. Qh4+ {[%emt 0:00:21]} Kf3 {[%emt 0:00:50]} 97. Qh1+ {[%emt 0:00:30]} Kg3 {[%emt 0:00:19]} 98. Qe1+ {[%emt 0:00:15]} Kf3 {[%emt 0:00:00]} 99. Qh1+ {[%emt 0:00:00]} Ng2 {[%emt 0:01:07]} 100. Kd2 {[%emt 0:00:06]} Kf2 {[%emt 0:00:10]} 101. Qh5 {[%emt 0:00:29]} f4 {[%emt 0:00:31]} 102. Qc5+ {[%emt 0:00:04]} Ne3 {[%emt 0:00:03]} 103. Qd4 {[%emt 0:01:12]} Kf3 {[%emt 0:00:27]} 104. Qh8 {[%emt 0:00:42]} Bf1 {[%emt 0:01:00]} 105. Ke1 {[%emt 0:01:09]} Bh3 {[%emt 0:00:45]} 106. Qa8+ {[%emt 0:00:30]} Kg3 {[%emt 0:00:30]} 107. Qh1 {[%emt 0:00:01]} Ng2+ {[%emt 0:00:00]} 108. Kf1 {[%emt 0:01:10]} Nh4+ {[%emt 0:00:01]} 109. Ke1 {[%emt 0:00:28]} Bg2 {[%emt 0:00:13]} 110. Qxh4+ {[%emt 0:00:35]} Kxh4 {[%emt 0:00:09]} 111. Kf2 {[%emt 0:00:03]} Ba8 {[%emt 0:00:11]} 112. Kg1 {[%emt 0:00:05]} Kh3 {[%emt 0:00:09]} 113. Kf1 {[%emt 0:00:06]} Kh2 {[%emt 0:00:05]} 114. Ke1 {[%emt 0:00:12]} f3 {[%emt 0:00:08]} 115. Kf2 {[%emt 0:00:24]} g3+ {[%emt 0:00:04]} 0-1

[Event "7th Ali Ipek Memorial 2019"]
[Site "Ankara"]
[Date "2019.03.09"]
[Round "4.10"]
[White "Turkmen, Erkan"]
[Black "Severcan, Sedat Sabri"]
[Result "0-1"]
[ECO "B90"]
[WhiteElo "1403"]
[BlackElo "1927"]
[Annotator "NA"]
[PlyCount "118"]
[EventDate "2019.03.06"]
[EventType "swiss"]
[EventCountry "TUR"]
[SourceTitle "playchess.com"]
[Source "ChessBase"]
[SourceQuality "1"]
[TimeControl "5400+30"]

{[%evp 10,73,24,13,21,33,21,15,26,-3,29,35,30,12,20,0,30,5,12,-27,-15,-12,-18,-23,-16,-18,-11,-61,-52,-48,-40,-41,0,-36,12,-5,31,36,49,39,34,0,6,0,0,0,0,-3,-12,-14,-12,0,-10,-10,-20,-55,-70,-63,-62,-71,-60,-77,-97,-104,-90,-152]} 1. e4 {[%emt 0:00:30]} c5 {[%emt 0:03:30]} 2. Nf3 {[%emt 0:00:00]} d6 {[%emt 0:02:30]} 3. d4 {[%emt 0:00:00]} cxd4 {[%emt 0:00:30]} 4. Nxd4 {[%emt 0:00:30]} Nf6 {[%emt 0:00:30]} 5. Nc3 {[%emt 0:00:00]} a6 {[%emt 0:00:00]} 6. Be3 {[%emt 0:00:00]} e5 {[%emt 0:00:00]} 7. Nb3 {[%emt 0:01:30]} Be6 {[%emt 0:00:30]} 8. Qd2 {[%emt 0:00:00]} Nbd7 {[%emt 0:00:30]} 9. O-O-O {[%emt 0:00:00] LiveBook: 300 Games B90: Sicilian Najdorf: Unusual White 6th moves, 6 Be3 Ng4 and 6 Be3 e5} Rc8 {[%emt 0:00:30]} 10. Kb1 {[%emt 0:00:30]} b5 {[%emt 0:02:30]} 11. f3 {[%emt 0:00:30]} h5 {[%emt 0:00:30]} 12. Be2 {[%emt 0:00:30]} (12. g3 Be7 13. Nd5 Nxd5 14. exd5 Bf5 15. Bd3 Bxd3 16. Qxd3 O-O 17. Rhg1 f5 18. h3 {1-0 (47) Aronian,L (2767)-Vachier Lagrave,M (2779) Saint Louis 2018}) 12... Nb6 {[%emt 0:02:30]} 13. Na5 $146 {[%emt 0:01:30]} ({Predecessor:} 13. g3 Nc4 14. Bxc4 bxc4 15. Nc1 Rb8 16. Ka1 Be7 17. N1e2 Qc7 18. Rhg1 O-O {0-1 (28) Kombar,M (1851)-Tahay,A (2312) St Petersburg 2018}) 13... Qc7 $1 {[%emt 0:06:30]} 14. Bxb5+ {[%emt 0:00:30]} axb5 {[%emt 0:02:30]} 15. Nxb5 {[%emt 0:00:30]} Qb8 {[%emt 0:05:30]} 16. Nxd6+ {[%emt 0:00:30]} Bxd6 {[%emt 0:02:30]} 17. Qxd6 {[%emt 0:00:00]} Na4 {[%emt 0:04:30]} 18. Qxb8 {[%emt 0:04:00]} Rxb8 {[%emt 0:01:30]} 19. Nb3 {[%emt 0:00:00]} O-O {[%emt 0:01:30]} 20. Rd6 {[%emt 0:00:00]} Rfc8 {[%emt 0:12:30]} 21. Rhd1 {[%emt 0:00:30]} Kf8 {[%emt 0:07:30]} 22. Ra6 {[%emt 0:01:30]} Bxb3 {[%emt 0:03:30]} 23. axb3 {[%emt 0:00:30]} Nc5 {[%emt 0:00:30]} 24. Ra5 {[%emt 0:00:00]} Ncd7 {[%emt 0:01:30]} 25. Ra7 {[%emt 0:02:00]} Ke8 {[%emt 0:06:30]} 26. Rd6 {[%emt 0:01:30]} Nc5 {[%emt 0:06:30]} 27. Ra5 {[%emt 0:00:30]} Nfd7 {[%emt 0:03:30]} 28. Rd5 {[%emt 0:00:30]} Ne6 {[%emt 0:01:30]} 29. Ra7 {[%emt 0:00:30]} Nc7 {[%emt 0:01:30]} 30. Rd2 {[%emt 0:02:30]} f6 {[%emt 0:02:59]} 31. Rd3 {[%emt 0:00:00]} Nf8 {[%emt 0:01:12]} 32. Bc5 {[%emt 0:01:00]} Nfe6 {[%emt 0:01:24]} 33. Bd6 {[%emt 0:00:00]} Ra8 {[%emt 0:04:27]} 34. Rb7 {[%emt 0:00:00]} Ra6 {[%emt 0:00:28]} 35. Ba3 {[%emt 0:01:30]} Rd8 {[%emt 0:00:29]} 36. Rxd8+ {[%emt 0:00:00]} Kxd8 {[%emt 0:00:05]} 37. c3 $17 {[%emt 0:01:00]} Kc8 {[%emt 0:01:01]} 38. Rb4 {[%emt 0:00:30]} g5 {[%emt 0:00:47]} 39. Kc2 {[%emt 0:00:00]} h4 {[%emt 0:01:13]} 40. Rc4 {[%emt 0:00:00]} Kd7 {[%emt 0:00:56]} 41. b4 {[%emt 0:00:30]} Ra8 {[%emt 0:00:01]} 42. Kb3 {[%emt 0:02:30]} Nb5 {[%emt 0:00:31]} 43. g3 {[%emt 0:00:30]} hxg3 {[%emt 0:00:36]} 44. hxg3 {[%emt 0:00:30]} Nd6 {[%emt 0:00:00]} 45. Rc5 {[%emt 0:00:30]} Nxc5+ {[%emt 0:00:43]} 46. bxc5 {[%emt 0:00:30]} Nb7 {[%emt 0:00:00]} 47. c6+ {[%emt 0:00:30]} Kxc6 {[%emt 0:01:13]} 48. Be7 {[%emt 0:00:30]} Nc5+ {[%emt 0:00:43]} 49. Kc4 {[%emt 0:00:30]} Nd7 {[%emt 0:00:31]} 50. b4 {[%emt 0:00:30]} Re8 {[%emt 0:00:03]} 51. b5+ {[%emt 0:00:00]} Kc7 {[%emt 0:00:33]} 52. Bb4 {[%emt 0:00:00]} Rh8 {[%emt 0:01:21]} 53. Kd5 {[%emt 0:00:30]} Rh3 {[%emt 0:01:43]} 54. Ba5+ {[%emt 0:00:30]} Kb7 {[%emt 0:02:21]} 55. Kd6 {[%emt 0:00:30]} Nb6 {[%emt 0:00:03]} 56. Kc5 {[%emt 0:00:30]} Na4+ {[%emt 0:00:20]} 57. Kb4 {[%emt 0:00:00]} Nxc3 {[%emt 0:00:31]} 58. Kxc3 {[%emt 0:00:00]} Rxg3 {[%emt 0:00:00]} 59. Kc4 {[%emt 0:00:30]} Rxf3 {[%emt 0:00:08]} 0-1